[Event "Titled Tuesday Blitz May 30 Early 2023"]
[White "Vaglio Munoz, Jaime"]
[Black "Garakov, Mikhael"]
[WhiteFideId "6500145"]
[BlackFideId "4169034"]
[WhiteElo "2199"]
[BlackElo "2347"]
[Result "1-0"]
[Round "02"]
[TimeControl "180+2"]
[Date "2023.05.30"]
[WhiteClock "0:00:09"]
[BlackClock "0:00:00"]

1. Nf3 {[%clk 0:03:00]}  c5 {[%clk 0:02:59]} 2. c4 {[%clk 0:02:58]}  Nf6 {[%clk 0:02:58]} 3. b3 {[%clk 0:02:58]}  b6 {[%clk 0:02:56]} 4. Bb2 {[%clk 0:02:58]}  e6 {[%clk 0:02:57]} 5. g3 {[%clk 0:02:58]}  Bb7 {[%clk 0:02:58]} 6. Bg2 {[%clk 0:02:58]}  Be7 {[%clk 0:02:58]} 7. O-O {[%clk 0:02:58]}  O-O {[%clk 0:02:59]} 8. d4 {[%clk 0:02:58]}  cxd4 {[%clk 0:02:59]} 9. Nxd4 {[%clk 0:02:56]}  Bxg2 {[%clk 0:02:59]} 10. Kxg2 {[%clk 0:02:57]}  Qc8 {[%clk 0:02:58]} 11. f3 {[%clk 0:02:53]}  a6 {[%clk 0:02:56]} 12. e4 {[%clk 0:02:52]}  d6 {[%clk 0:02:56]} 13. Nc3 {[%clk 0:02:49]}  Nc6 {[%clk 0:02:52]} 14. Nde2 {[%clk 0:02:47]}  Qb7 {[%clk 0:02:51]} 15. Rc1 {[%clk 0:02:45]}  b5 {[%clk 0:02:51]} 16. cxb5 {[%clk 0:02:38]}  axb5 {[%clk 0:02:52]} 17. a3 {[%clk 0:02:38]}  b4 {[%clk 0:02:49]} 18. Na4 {[%clk 0:02:36]}  Ne5 {[%clk 0:02:29]} 19. Bxe5 {[%clk 0:02:23]}  dxe5 {[%clk 0:02:28]} 20. axb4 {[%clk 0:02:22]}  Rfd8 {[%clk 0:02:17]} 21. Qc2 {[%clk 0:02:20]}  Rac8 {[%clk 0:02:09]} 22. Qb2 {[%clk 0:02:10]}  Rxc1 {[%clk 0:02:01]} 23. Rxc1 {[%clk 0:02:04]}  Qxb4 {[%clk 0:02:01]} 24. Rc2 {[%clk 0:01:35]}  h6 {[%clk 0:01:55]} 25. g4 {[%clk 0:01:34]}  Nxe4 {[%clk 0:01:43]} 26. Rc4 {[%clk 0:01:21]}  Qe1 {[%clk 0:01:11]} 27. Rxe4 {[%clk 0:01:21]}  Rd1 {[%clk 0:01:04]} 28. Nac3 {[%clk 0:00:58]}  Qh1+ {[%clk 0:00:43]} 29. Kh3 {[%clk 0:00:50]}  Qxf3+ {[%clk 0:00:35]} 30. Ng3 {[%clk 0:00:48]}  f5 {[%clk 0:00:31]} 31. Nxd1 {[%clk 0:00:39]}  Qxe4 {[%clk 0:00:28]} 32. Nf2 {[%clk 0:00:38]}  Qf4 {[%clk 0:00:24]} 33. Qe2 {[%clk 0:00:28]}  e4 {[%clk 0:00:23]} 34. Nfxe4 {[%clk 0:00:19]}  fxe4 {[%clk 0:00:21]} 35. Qxe4 {[%clk 0:00:20]}  Qf6 {[%clk 0:00:15]} 36. Nh5 {[%clk 0:00:19]}  Qc3+ {[%clk 0:00:14]} 37. Kg2 {[%clk 0:00:18]}  Qxb3 {[%clk 0:00:14]} 38. Qd4 {[%clk 0:00:17]}  Qd5+ {[%clk 0:00:12]} 39. Qxd5 {[%clk 0:00:17]}  exd5 {[%clk 0:00:13]} 40. Kf3 {[%clk 0:00:17]}  Kf7 {[%clk 0:00:13]} 41. Nf4 {[%clk 0:00:17]}  d4 {[%clk 0:00:12]} 42. Ke4 {[%clk 0:00:17]}  Bd6 {[%clk 0:00:11]} 43. Ne2 {[%clk 0:00:12]}  Bc5 {[%clk 0:00:09]} 44. h4 {[%clk 0:00:11]}  h5 {[%clk 0:00:00]} 45. g5 {[%clk 0:00:09]} 1-0


[Site "https://www.chess.com"]

[Event "Titled Tuesday Blitz May 30 Early 2023"]
[White "crosky"]
[Black "Guerra Tulcan, Lenin"]
[BlackFideId "3601382"]
[WhiteElo "2300"]
[BlackElo "2368"]
[Result "0-1"]
[Round "02"]
[TimeControl "180+2"]
[Date "2023.05.30"]
[WhiteClock "0:00:00"]
[BlackClock "0:00:33"]

1. d4 {[%clk 0:03:00]}  Nf6 {[%clk 0:02:58]} 2. c4 {[%clk 0:03:01]}  c5 {[%clk 0:02:58]} 3. d5 {[%clk 0:03:01]}  b5 {[%clk 0:02:59]} 4. cxb5 {[%clk 0:03:01]}  a6 {[%clk 0:02:59]} 5. bxa6 {[%clk 0:02:52]}  Bxa6 {[%clk 0:03:00]} 6. Nc3 {[%clk 0:02:53]}  d6 {[%clk 0:02:59]} 7. e4 {[%clk 0:02:52]}  Bxf1 {[%clk 0:03:00]} 8. Kxf1 {[%clk 0:02:52]}  g6 {[%clk 0:03:00]} 9. g3 {[%clk 0:02:52]}  Bg7 {[%clk 0:03:01]} 10. Kg2 {[%clk 0:02:51]}  O-O {[%clk 0:03:02]} 11. Nf3 {[%clk 0:02:48]}  Nbd7 {[%clk 0:03:02]} 12. Re1 {[%clk 0:02:47]}  Ra6 {[%clk 0:03:02]} 13. a4 {[%clk 0:02:44]}  Qa8 {[%clk 0:03:01]} 14. Ra3 {[%clk 0:02:42]}  Rb8 {[%clk 0:02:59]} 15. Nd2 {[%clk 0:02:35]}  Rb4 {[%clk 0:02:57]} 16. Qe2 {[%clk 0:02:23]}  Nb6 {[%clk 0:02:54]} 17. b3 {[%clk 0:01:39]}  Nfd7 {[%clk 0:02:26]} 18. Nb5 {[%clk 0:01:29]}  Qb7 {[%clk 0:02:18]} 19. f4 {[%clk 0:01:15]}  c4 {[%clk 0:02:14]} 20. Nxc4 {[%clk 0:01:06]}  Nxc4 {[%clk 0:02:11]} 21. bxc4 {[%clk 0:01:07]}  Nc5 {[%clk 0:02:07]} 22. e5 {[%clk 0:01:02]}  Rbxa4 {[%clk 0:01:44]} 23. Rxa4 {[%clk 0:01:00]}  Nxa4 {[%clk 0:01:44]} 24. exd6 {[%clk 0:00:56]}  exd6 {[%clk 0:01:41]} 25. Qe8+ {[%clk 0:00:56]}  Bf8 {[%clk 0:01:40]} 26. Ba3 {[%clk 0:00:52]}  Ra8 {[%clk 0:01:20]} 27. Qc6 {[%clk 0:00:47]}  Qxc6 {[%clk 0:01:03]} 28. dxc6 {[%clk 0:00:48]}  Rc8 {[%clk 0:01:00]} 29. c7 {[%clk 0:00:46]}  Nb6 {[%clk 0:00:59]} 30. Re4 {[%clk 0:00:18]}  d5 {[%clk 0:00:55]} 31. cxd5 {[%clk 0:00:14]}  Bxa3 {[%clk 0:00:53]} 32. Nxa3 {[%clk 0:00:14]}  Nxd5 {[%clk 0:00:54]} 33. Nb5 {[%clk 0:00:13]}  Kf8 {[%clk 0:00:48]} 34. Rd4 {[%clk 0:00:13]}  Nxc7 {[%clk 0:00:43]} 35. Rc4 {[%clk 0:00:12]}  Nxb5 {[%clk 0:00:43]} 36. Rxc8+ {[%clk 0:00:13]}  Kg7 {[%clk 0:00:43]} 37. Rb8 {[%clk 0:00:14]}  Nc7 {[%clk 0:00:41]} 38. Rb7 {[%clk 0:00:14]}  Ne6 {[%clk 0:00:41]} 39. Kf3 {[%clk 0:00:13]}  h5 {[%clk 0:00:40]} 40. Ra7 {[%clk 0:00:14]}  Kf6 {[%clk 0:00:40]} 41. h3 {[%clk 0:00:14]}  Nd4+ {[%clk 0:00:39]} 42. Ke4 {[%clk 0:00:14]}  Nf5 {[%clk 0:00:39]} 43. Ra6+ {[%clk 0:00:14]}  Ke7 {[%clk 0:00:37]} 44. g4 {[%clk 0:00:14]}  hxg4 {[%clk 0:00:37]} 45. hxg4 {[%clk 0:00:15]}  Nd6+ {[%clk 0:00:35]} 46. Kd5 {[%clk 0:00:15]}  Ne8 {[%clk 0:00:35]} 47. g5 {[%clk 0:00:15]}  Nc7+ {[%clk 0:00:34]} 48. Ke5 {[%clk 0:00:12]}  Nxa6 {[%clk 0:00:35]} 49. f5 {[%clk 0:00:00]}  Nc7 {[%clk 0:00:33]} 0-1


[Site "https://www.chess.com"]

[Event "Titled Tuesday Blitz May 30 Early 2023"]
[White "Rosenberg, Evan S"]
[Black "Devaev, Alexander"]
[WhiteFideId "2019299"]
[BlackFideId "4169395"]
[WhiteElo "2287"]
[BlackElo "2172"]
[Result "0-1"]
[Round "02"]
[TimeControl "180+2"]
[Date "2023.05.30"]
[WhiteClock "0:00:00"]
[BlackClock "0:00:17"]

1. d4 {[%clk 0:03:00]}  Nf6 {[%clk 0:02:59]} 2. Bg5 {[%clk 0:03:00]}  Ne4 {[%clk 0:02:59]} 3. h4 {[%clk 0:02:59]}  Nxg5 {[%clk 0:02:58]} 4. hxg5 {[%clk 0:02:59]}  g6 {[%clk 0:02:59]} 5. e3 {[%clk 0:02:57]}  Bg7 {[%clk 0:03:00]} 6. f4 {[%clk 0:02:54]}  d6 {[%clk 0:03:00]} 7. Nf3 {[%clk 0:02:53]}  Bg4 {[%clk 0:03:00]} 8. Nbd2 {[%clk 0:02:51]}  c5 {[%clk 0:02:58]} 9. c3 {[%clk 0:02:51]}  Nc6 {[%clk 0:02:37]} 10. Qb3 {[%clk 0:02:50]}  Qc7 {[%clk 0:02:02]} 11. Rh4 {[%clk 0:02:08]}  Bxf3 {[%clk 0:01:57]} 12. Nxf3 {[%clk 0:02:06]}  cxd4 {[%clk 0:01:54]} 13. cxd4 {[%clk 0:02:01]}  e6 {[%clk 0:01:52]} 14. Rc1 {[%clk 0:01:49]}  Qa5+ {[%clk 0:01:43]} 15. Kf2 {[%clk 0:01:47]}  Qc7 {[%clk 0:01:39]} 16. d5 {[%clk 0:01:44]}  exd5 {[%clk 0:01:39]} 17. Qxd5 {[%clk 0:01:44]}  O-O {[%clk 0:01:37]} 18. Bd3 {[%clk 0:01:38]}  Qb6 {[%clk 0:01:29]} 19. Rch1 {[%clk 0:01:36]}  Nb4 {[%clk 0:01:23]} 20. Bxg6 {[%clk 0:01:15]}  hxg6 {[%clk 0:01:14]} 21. Qb3 {[%clk 0:01:09]}  Rac8 {[%clk 0:01:08]} 22. Nd4 {[%clk 0:01:05]}  Nc2 {[%clk 0:00:57]} 23. Qd5 {[%clk 0:00:34]}  Nxd4 {[%clk 0:00:52]} 24. exd4 {[%clk 0:00:34]}  Qxd4+ {[%clk 0:00:52]} 25. Qxd4 {[%clk 0:00:34]}  Bxd4+ {[%clk 0:00:53]} 26. Kf3 {[%clk 0:00:35]}  Rc2 {[%clk 0:00:53]} 27. Ke4 {[%clk 0:00:34]}  Bg7 {[%clk 0:00:53]} 28. g4 {[%clk 0:00:34]}  Re8+ {[%clk 0:00:44]} 29. Kd5 {[%clk 0:00:34]}  Rd2+ {[%clk 0:00:39]} 30. Kc4 {[%clk 0:00:34]}  Rc8+ {[%clk 0:00:40]} 31. Kb3 {[%clk 0:00:34]}  Rxb2+ {[%clk 0:00:40]} 32. Ka3 {[%clk 0:00:34]}  Rg2 {[%clk 0:00:39]} 33. f5 {[%clk 0:00:34]}  gxf5 {[%clk 0:00:37]} 34. gxf5 {[%clk 0:00:34]}  Rxg5 {[%clk 0:00:37]} 35. f6 {[%clk 0:00:34]}  Bxf6 {[%clk 0:00:38]} 36. Rh6 {[%clk 0:00:35]}  Bg7 {[%clk 0:00:38]} 37. Rxd6 {[%clk 0:00:36]}  Rg6 {[%clk 0:00:37]} 38. Rd7 {[%clk 0:00:36]}  Ra6+ {[%clk 0:00:37]} 39. Kb4 {[%clk 0:00:36]}  Bf8+ {[%clk 0:00:29]} 40. Kb3 {[%clk 0:00:32]}  Rcc6 {[%clk 0:00:27]} 41. Rg1+ {[%clk 0:00:29]}  Rg6 {[%clk 0:00:27]} 42. Re1 {[%clk 0:00:24]}  Rgb6+ {[%clk 0:00:25]} 43. Kc4 {[%clk 0:00:23]}  Ra4+ {[%clk 0:00:24]} 44. Kd3 {[%clk 0:00:20]}  Rxa2 {[%clk 0:00:24]} 45. Re8 {[%clk 0:00:19]}  Re6 {[%clk 0:00:19]} 46. Ra8 {[%clk 0:00:16]}  Ra3+ {[%clk 0:00:19]} 47. Kd4 {[%clk 0:00:12]}  Kg7 {[%clk 0:00:20]} 48. Rxb7 {[%clk 0:00:11]}  a5 {[%clk 0:00:18]} 49. Rbb8 {[%clk 0:00:11]}  Bb4 {[%clk 0:00:18]} 50. Rg8+ {[%clk 0:00:10]}  Kf6 {[%clk 0:00:18]} 51. Rh8 {[%clk 0:00:11]}  Rd6+ {[%clk 0:00:19]} 52. Kc4 {[%clk 0:00:11]}  Rc3+ {[%clk 0:00:19]} 53. Kb5 {[%clk 0:00:11]}  Rc5+ {[%clk 0:00:19]} 54. Ka4 {[%clk 0:00:11]}  Rd3 {[%clk 0:00:20]} 55. Ra6+ {[%clk 0:00:10]}  Kg7 {[%clk 0:00:20]} 56. Rh3 {[%clk 0:00:00]}  Rcc3 {[%clk 0:00:17]} 0-1


[Site "https://www.chess.com"]

[Event "Titled Tuesday Blitz May 30 Early 2023"]
[White "LangesNasenhaar"]
[Black "Blokhin, Sofia"]
[BlackFideId "4508190"]
[WhiteElo "2506"]
[BlackElo "1994"]
[Result "1/2-1/2"]
[Round "02"]
[TimeControl "180+2"]
[Date "2023.05.30"]
[WhiteClock "0:00:22"]
[BlackClock "0:00:07"]

1. d4 {[%clk 0:02:59]}  d5 {[%clk 0:02:58]} 2. Nc3 {[%clk 0:02:59]}  e6 {[%clk 0:02:57]} 3. Bf4 {[%clk 0:02:59]}  Nf6 {[%clk 0:02:56]} 4. Nb5 {[%clk 0:02:58]}  Na6 {[%clk 0:02:54]} 5. e3 {[%clk 0:02:58]}  c6 {[%clk 0:02:51]} 6. Nc3 {[%clk 0:02:57]}  Nc7 {[%clk 0:02:47]} 7. Nf3 {[%clk 0:02:58]}  Bd6 {[%clk 0:02:47]} 8. Ne5 {[%clk 0:02:58]}  O-O {[%clk 0:02:44]} 9. Bd3 {[%clk 0:02:56]}  g6 {[%clk 0:02:38]} 10. g4 {[%clk 0:02:48]}  Kg7 {[%clk 0:02:09]} 11. h4 {[%clk 0:02:47]}  h5 {[%clk 0:01:45]} 12. f3 {[%clk 0:02:15]}  Rh8 {[%clk 0:01:33]} 13. Bg5 {[%clk 0:02:06]}  Be7 {[%clk 0:01:27]} 14. Qe2 {[%clk 0:02:03]}  Nd7 {[%clk 0:01:22]} 15. Bxe7 {[%clk 0:01:35]}  Qxe7 {[%clk 0:01:22]} 16. Nxd7 {[%clk 0:01:34]}  Bxd7 {[%clk 0:01:18]} 17. g5 {[%clk 0:01:34]}  e5 {[%clk 0:01:13]} 18. O-O-O {[%clk 0:01:29]}  exd4 {[%clk 0:01:06]} 19. exd4 {[%clk 0:01:30]}  Qxe2 {[%clk 0:01:05]} 20. Nxe2 {[%clk 0:01:25]}  Rhe8 {[%clk 0:01:03]} 21. f4 {[%clk 0:01:18]}  Bg4 {[%clk 0:00:58]} 22. Rde1 {[%clk 0:01:15]}  Ne6 {[%clk 0:00:54]} 23. c3 {[%clk 0:01:08]}  Bxe2 {[%clk 0:00:51]} 24. Bxe2 {[%clk 0:00:51]}  Nxf4 {[%clk 0:00:52]} 25. Kd2 {[%clk 0:00:52]}  Nxe2 {[%clk 0:00:46]} 26. Rxe2 {[%clk 0:00:53]}  Rxe2+ {[%clk 0:00:45]} 27. Kxe2 {[%clk 0:00:53]}  Re8+ {[%clk 0:00:45]} 28. Kd3 {[%clk 0:00:52]}  Re4 {[%clk 0:00:44]} 29. b3 {[%clk 0:00:52]}  f6 {[%clk 0:00:40]} 30. gxf6+ {[%clk 0:00:51]}  Kxf6 {[%clk 0:00:40]} 31. c4 {[%clk 0:00:52]}  Kf5 {[%clk 0:00:36]} 32. Rf1+ {[%clk 0:00:46]}  Rf4 {[%clk 0:00:32]} 33. Rh1 {[%clk 0:00:46]}  Kg4 {[%clk 0:00:21]} 34. Rg1+ {[%clk 0:00:44]}  Kf5 {[%clk 0:00:18]} 35. Rh1 {[%clk 0:00:43]}  Rf3+ {[%clk 0:00:18]} 36. Ke2 {[%clk 0:00:41]}  Rc3 {[%clk 0:00:17]} 37. Kd2 {[%clk 0:00:40]}  Rg3 {[%clk 0:00:16]} 38. cxd5 {[%clk 0:00:32]}  cxd5 {[%clk 0:00:16]} 39. Re1 {[%clk 0:00:33]}  Rg2+ {[%clk 0:00:16]} 40. Kc3 {[%clk 0:00:31]}  Rxa2 {[%clk 0:00:14]} 41. Re5+ {[%clk 0:00:31]}  Kg4 {[%clk 0:00:14]} 42. Rg5+ {[%clk 0:00:32]}  Kxh4 {[%clk 0:00:13]} 43. Rxg6 {[%clk 0:00:33]}  Kh3 {[%clk 0:00:12]} 44. Rg5 {[%clk 0:00:30]}  h4 {[%clk 0:00:12]} 45. Rxd5 {[%clk 0:00:31]}  Kh2 {[%clk 0:00:12]} 46. Rd7 {[%clk 0:00:31]}  b6 {[%clk 0:00:10]} 47. d5 {[%clk 0:00:29]}  h3 {[%clk 0:00:11]} 48. d6 {[%clk 0:00:28]}  Ra1 {[%clk 0:00:07]} 49. Kd4 {[%clk 0:00:23]}  Rd1+ {[%clk 0:00:08]} 50. Ke5 {[%clk 0:00:23]}  Kg1 {[%clk 0:00:07]} 51. Rg7+ {[%clk 0:00:22]}  Kf2 {[%clk 0:00:07]} 52. Rf7+ {[%clk 0:00:21]}  Kg2 {[%clk 0:00:06]} 53. Rg7+ {[%clk 0:00:22]}  Kf2 {[%clk 0:00:06]} 54. Rf7+ {[%clk 0:00:22]}  Kg2 {[%clk 0:00:07]} 55. Rg7+ {[%clk 0:00:22]}  Kf2 {[%clk 0:00:07]} 1/2-1/2


[Site "https://www.chess.com"]

[Event "Titled Tuesday Blitz May 30 Early 2023"]
[White "Zaichenko, Daria"]
[Black "Janaszak, Dawid"]
[WhiteFideId "4197453"]
[BlackFideId "1119206"]
[WhiteElo "2039"]
[BlackElo "2220"]
[Result "0-1"]
[Round "02"]
[TimeControl "180+2"]
[Date "2023.05.30"]
[WhiteClock "0:00:14"]
[BlackClock "0:01:26"]

1. e4 {[%clk 0:02:55]}  c5 {[%clk 0:02:56]} 2. Nf3 {[%clk 0:02:53]}  Nc6 {[%clk 0:02:56]} 3. d4 {[%clk 0:02:53]}  cxd4 {[%clk 0:02:57]} 4. Nxd4 {[%clk 0:02:54]}  e5 {[%clk 0:02:57]} 5. Nb5 {[%clk 0:02:39]}  d6 {[%clk 0:02:57]} 6. c4 {[%clk 0:02:39]}  g6 {[%clk 0:02:53]} 7. Be3 {[%clk 0:02:34]}  a6 {[%clk 0:02:52]} 8. N5c3 {[%clk 0:02:34]}  Bg7 {[%clk 0:02:53]} 9. Be2 {[%clk 0:02:31]}  Nf6 {[%clk 0:02:52]} 10. O-O {[%clk 0:02:30]}  O-O {[%clk 0:02:52]} 11. Nd2 {[%clk 0:02:22]}  Nd4 {[%clk 0:02:52]} 12. Bxd4 {[%clk 0:02:15]}  exd4 {[%clk 0:02:52]} 13. Nd5 {[%clk 0:02:15]}  Re8 {[%clk 0:02:49]} 14. f3 {[%clk 0:02:08]}  d3 {[%clk 0:02:40]} 15. Bxd3 {[%clk 0:02:04]}  Nxd5 {[%clk 0:02:40]} 16. cxd5 {[%clk 0:02:02]}  Bxb2 {[%clk 0:02:40]} 17. Rb1 {[%clk 0:02:00]}  Bg7 {[%clk 0:02:40]} 18. Nc4 {[%clk 0:01:55]}  b5 {[%clk 0:02:38]} 19. Nd2 {[%clk 0:01:48]}  Qa5 {[%clk 0:02:33]} 20. Qc2 {[%clk 0:01:45]}  Bd7 {[%clk 0:02:33]} 21. Nb3 {[%clk 0:01:45]}  Qa4 {[%clk 0:02:27]} 22. Qc7 {[%clk 0:01:40]}  Red8 {[%clk 0:02:20]} 23. Qxd6 {[%clk 0:01:38]}  Qxa2 {[%clk 0:02:15]} 24. Qe7 {[%clk 0:01:28]}  Bf8 {[%clk 0:01:56]} 25. Qh4 {[%clk 0:01:24]}  a5 {[%clk 0:01:55]} 26. Kh1 {[%clk 0:01:23]}  a4 {[%clk 0:01:55]} 27. Nd4 {[%clk 0:01:23]}  a3 {[%clk 0:01:54]} 28. Rf2 {[%clk 0:00:58]}  Qxf2 {[%clk 0:01:32]} 29. Qxf2 {[%clk 0:00:58]}  Bc5 {[%clk 0:01:33]} 30. Ra1 {[%clk 0:00:21]}  Ra4 {[%clk 0:01:32]} 31. Bc2 {[%clk 0:00:19]}  Bxd4 {[%clk 0:01:31]} 32. Qd2 {[%clk 0:00:19]}  Bxa1 {[%clk 0:01:28]} 33. Bxa4 {[%clk 0:00:19]}  bxa4 {[%clk 0:01:28]} 34. Qd1 {[%clk 0:00:18]}  Bb2 {[%clk 0:01:25]} 35. Qb1 {[%clk 0:00:14]}  Rc8 {[%clk 0:01:26]} 0-1


[Site "https://www.chess.com"]

[Event "Titled Tuesday Blitz May 30 Early 2023"]
[White "Toncheva, Nadya"]
[Black "Tsyhanchuk, Stanislav"]
[WhiteFideId "2924056"]
[BlackFideId "13505130"]
[WhiteElo "2101"]
[BlackElo "2173"]
[Result "0-1"]
[Round "02"]
[TimeControl "180+2"]
[Date "2023.05.30"]
[WhiteClock "0:00:16"]
[BlackClock "0:00:10"]

1. e4 {[%clk 0:03:00]}  c5 {[%clk 0:03:00]} 2. c3 {[%clk 0:03:00]}  e6 {[%clk 0:02:59]} 3. d4 {[%clk 0:02:59]}  d5 {[%clk 0:03:00]} 4. exd5 {[%clk 0:03:00]}  exd5 {[%clk 0:03:00]} 5. Nf3 {[%clk 0:03:00]}  Nc6 {[%clk 0:03:00]} 6. Bb5 {[%clk 0:03:01]}  Nf6 {[%clk 0:03:00]} 7. O-O {[%clk 0:03:01]}  Be7 {[%clk 0:02:59]} 8. Re1 {[%clk 0:02:56]}  O-O {[%clk 0:02:58]} 9. dxc5 {[%clk 0:02:54]}  Bxc5 {[%clk 0:02:58]} 10. Be3 {[%clk 0:02:53]}  Bxe3 {[%clk 0:02:50]} 11. Rxe3 {[%clk 0:02:54]}  Qb6 {[%clk 0:02:48]} 12. Qb3 {[%clk 0:01:53]}  d4 {[%clk 0:02:15]} 13. cxd4 {[%clk 0:01:47]}  Nxd4 {[%clk 0:02:10]} 14. Nxd4 {[%clk 0:01:47]}  Qxd4 {[%clk 0:02:11]} 15. Nc3 {[%clk 0:01:45]}  Be6 {[%clk 0:02:09]} 16. Qa4 {[%clk 0:01:39]}  Qb6 {[%clk 0:01:58]} 17. h3 {[%clk 0:01:34]}  h6 {[%clk 0:01:51]} 18. Rd1 {[%clk 0:01:26]}  Rfd8 {[%clk 0:01:50]} 19. Re2 {[%clk 0:01:16]}  a6 {[%clk 0:01:46]} 20. Bd3 {[%clk 0:01:07]}  Rd4 {[%clk 0:01:40]} 21. Qc2 {[%clk 0:01:06]}  Rad8 {[%clk 0:01:40]} 22. Red2 {[%clk 0:01:03]}  g6 {[%clk 0:01:14]} 23. Na4 {[%clk 0:00:56]}  Qd6 {[%clk 0:01:11]} 24. Nc5 {[%clk 0:00:31]}  Rc8 {[%clk 0:00:34]} 25. b4 {[%clk 0:00:31]}  b6 {[%clk 0:00:33]} 26. Bxg6 {[%clk 0:00:28]}  bxc5 {[%clk 0:00:31]} 27. Bxf7+ {[%clk 0:00:22]}  Bxf7 {[%clk 0:00:24]} 28. Rxd4 {[%clk 0:00:21]}  cxd4 {[%clk 0:00:17]} 29. Qxc8+ {[%clk 0:00:21]}  Kg7 {[%clk 0:00:17]} 30. Qc5 {[%clk 0:00:19]}  Qxc5 {[%clk 0:00:10]} 31. bxc5 {[%clk 0:00:20]}  Ne4 {[%clk 0:00:08]} 32. c6 {[%clk 0:00:20]}  Nc3 {[%clk 0:00:08]} 33. Rxd4 {[%clk 0:00:20]}  Ne2+ {[%clk 0:00:08]} 34. Kf1 {[%clk 0:00:15]}  Nxd4 {[%clk 0:00:09]} 35. c7 {[%clk 0:00:16]}  Be6 {[%clk 0:00:10]} 36. Ke1 {[%clk 0:00:16]}  Nb5 {[%clk 0:00:10]} 37. Kd2 {[%clk 0:00:17]}  Nxc7 {[%clk 0:00:10]} 38. f4 {[%clk 0:00:16]}  Bd5 {[%clk 0:00:10]} 39. g4 {[%clk 0:00:16]}  Bg2 {[%clk 0:00:08]} 40. h4 {[%clk 0:00:15]}  Nd5 {[%clk 0:00:08]} 41. f5 {[%clk 0:00:15]}  Bh3 {[%clk 0:00:05]} 42. g5 {[%clk 0:00:15]}  h5 {[%clk 0:00:05]} 43. f6+ {[%clk 0:00:15]}  Nxf6 {[%clk 0:00:05]} 44. gxf6+ {[%clk 0:00:15]}  Kxf6 {[%clk 0:00:06]} 45. Ke3 {[%clk 0:00:15]}  Kf5 {[%clk 0:00:06]} 46. Kf3 {[%clk 0:00:15]}  Bf1 {[%clk 0:00:06]} 47. a3 {[%clk 0:00:15]}  Bb5 {[%clk 0:00:05]} 48. Kg3 {[%clk 0:00:15]}  a5 {[%clk 0:00:05]} 49. Kf3 {[%clk 0:00:15]}  a4 {[%clk 0:00:06]} 50. Kg3 {[%clk 0:00:16]}  Bc4 {[%clk 0:00:06]} 51. Kf3 {[%clk 0:00:16]}  Bb3 {[%clk 0:00:07]} 52. Kg3 {[%clk 0:00:16]}  Bd1 {[%clk 0:00:07]} 53. Kh3 {[%clk 0:00:15]}  Kf4 {[%clk 0:00:08]} 54. Kh2 {[%clk 0:00:14]}  Kg4 {[%clk 0:00:08]} 55. Kg2 {[%clk 0:00:15]}  Kxh4 {[%clk 0:00:09]} 56. Kg1 {[%clk 0:00:16]}  Kg4 {[%clk 0:00:10]} 57. Kh1 {[%clk 0:00:16]}  Kf4 {[%clk 0:00:10]} 0-1


[Site "https://www.chess.com"]

[Event "Titled Tuesday Blitz May 30 Early 2023"]
[White "Levitan, Caleb Levi"]
[Black "MariusBieliauskas"]
[WhiteFideId "14332620"]
[WhiteElo "1963"]
[BlackElo "2500"]
[Result "1/2-1/2"]
[Round "02"]
[TimeControl "180+2"]
[Date "2023.05.30"]
[WhiteClock "0:00:02"]
[BlackClock "0:00:08"]

1. e4 {[%clk 0:03:00]}  g6 {[%clk 0:02:57]} 2. d4 {[%clk 0:03:00]}  Bg7 {[%clk 0:02:57]} 3. Bc4 {[%clk 0:02:58]}  d6 {[%clk 0:02:57]} 4. Nf3 {[%clk 0:02:57]}  Nf6 {[%clk 0:02:56]} 5. Qe2 {[%clk 0:02:56]}  O-O {[%clk 0:02:50]} 6. O-O {[%clk 0:02:43]}  Bg4 {[%clk 0:02:50]} 7. Nbd2 {[%clk 0:02:36]}  Nc6 {[%clk 0:02:47]} 8. c3 {[%clk 0:02:35]}  e5 {[%clk 0:02:47]} 9. h3 {[%clk 0:02:30]}  Bc8 {[%clk 0:02:37]} 10. dxe5 {[%clk 0:02:22]}  Nxe5 {[%clk 0:02:36]} 11. Nxe5 {[%clk 0:02:19]}  dxe5 {[%clk 0:02:36]} 12. Nf3 {[%clk 0:02:19]}  Qe7 {[%clk 0:02:33]} 13. Be3 {[%clk 0:02:17]}  c6 {[%clk 0:02:32]} 14. Rad1 {[%clk 0:02:15]}  h6 {[%clk 0:02:31]} 15. Qc2 {[%clk 0:02:04]}  Nh5 {[%clk 0:02:27]} 16. b4 {[%clk 0:01:38]}  Re8 {[%clk 0:02:19]} 17. Bc5 {[%clk 0:01:35]}  Qf6 {[%clk 0:02:08]} 18. Rd6 {[%clk 0:01:34]}  Be6 {[%clk 0:02:07]} 19. Bxe6 {[%clk 0:01:32]}  Rxe6 {[%clk 0:02:06]} 20. Rxe6 {[%clk 0:01:31]}  Qxe6 {[%clk 0:02:06]} 21. Rd1 {[%clk 0:01:24]}  Nf4 {[%clk 0:01:52]} 22. Be3 {[%clk 0:01:22]}  Qe7 {[%clk 0:01:46]} 23. a3 {[%clk 0:01:10]}  a5 {[%clk 0:01:44]} 24. Bxf4 {[%clk 0:01:00]}  exf4 {[%clk 0:01:43]} 25. Nd2 {[%clk 0:00:41]}  axb4 {[%clk 0:01:39]} 26. axb4 {[%clk 0:00:41]}  Ra3 {[%clk 0:01:24]} 27. Nb1 {[%clk 0:00:32]}  Ra1 {[%clk 0:01:15]} 28. Qb2 {[%clk 0:00:31]}  Ra8 {[%clk 0:01:13]} 29. Qc2 {[%clk 0:00:20]}  f3 {[%clk 0:01:13]} 30. g3 {[%clk 0:00:15]}  Qe6 {[%clk 0:01:10]} 31. Kh2 {[%clk 0:00:06]}  Ra2 {[%clk 0:01:08]} 32. Rd8+ {[%clk 0:00:05]}  Kh7 {[%clk 0:01:07]} 33. Qd1 {[%clk 0:00:05]}  Rxf2+ {[%clk 0:01:06]} 34. Kg1 {[%clk 0:00:06]}  Qxh3 {[%clk 0:01:00]} 35. Kxf2 {[%clk 0:00:06]}  Qg2+ {[%clk 0:00:59]} 36. Ke3 {[%clk 0:00:06]}  f2 {[%clk 0:00:58]} 37. Nd2 {[%clk 0:00:04]}  h5 {[%clk 0:00:45]} 38. Qf1 {[%clk 0:00:01]}  Qxg3+ {[%clk 0:00:35]} 39. Ke2 {[%clk 0:00:01]}  Qg4+ {[%clk 0:00:28]} 40. Kxf2 {[%clk 0:00:02]}  Qh4+ {[%clk 0:00:28]} 41. Ke2 {[%clk 0:00:03]}  Qxd8 {[%clk 0:00:28]} 42. Qxf7 {[%clk 0:00:03]}  h4 {[%clk 0:00:26]} 43. Qxb7 {[%clk 0:00:03]}  h3 {[%clk 0:00:24]} 44. Nf3 {[%clk 0:00:04]}  Qf6 {[%clk 0:00:15]} 45. Qc8 {[%clk 0:00:02]}  Qxc3 {[%clk 0:00:13]} 46. Qxh3+ {[%clk 0:00:03]}  Kg8 {[%clk 0:00:13]} 47. Qe6+ {[%clk 0:00:03]}  Kh7 {[%clk 0:00:10]} 48. Ng5+ {[%clk 0:00:04]}  Kh6 {[%clk 0:00:10]} 49. Nf7+ {[%clk 0:00:04]}  Kh7 {[%clk 0:00:09]} 50. Ng5+ {[%clk 0:00:02]}  Kh6 {[%clk 0:00:09]} 51. Nf7+ {[%clk 0:00:01]}  Kh7 {[%clk 0:00:08]} 52. Ng5+ {[%clk 0:00:02]} 1/2-1/2


[Site "https://www.chess.com"]